[Event "*** SCC Grand Prix: Titled Tuesday Blitz"]
[Site "Chess.com"]
[Date "2020.06.23"]
[Round "1"]
[White "Siniauski"]
[Black "KejJaj"]
[Result "1-0"]
[WhiteElo "2489"]
[BlackElo "1998"]
[TimeControl "180+1"]
[EndTime "10:06:24 PDT"]
[Termination "Siniauski won by checkmate"]

1. e4 {[%clk 0:02:57.3]} 1... c5 {[%clk 0:02:59.6]} 2. Nf3 {[%clk 0:02:57.5]}
2... d6 {[%clk 0:03:00.2]} 3. Bb5+ {[%clk 0:02:57]} 3... Nc6 {[%clk 0:02:58.5]}
4. O-O {[%clk 0:02:52.5]} 4... Bd7 {[%clk 0:02:57]} 5. Re1 {[%clk 0:02:52.1]}
5... e5 {[%clk 0:02:56.3]} 6. c3 {[%clk 0:02:52.1]} 6... g6 {[%clk 0:02:48.3]}
7. d4 {[%clk 0:02:48.8]} 7... cxd4 {[%clk 0:02:43.3]} 8. cxd4 {[%clk 0:02:49]}
8... Bg7 {[%clk 0:02:37.6]} 9. b3 {[%clk 0:02:24.1]} 9... a6 {[%clk 0:02:25.6]}
10. Bxc6 {[%clk 0:02:19.6]} 10... Bxc6 {[%clk 0:02:26.5]} 11. Bb2 {[%clk
0:02:19.7]} 11... f6 {[%clk 0:02:07.2]} 12. dxe5 {[%clk 0:01:52.1]} 12... dxe5
{[%clk 0:02:08.1]} 13. Nc3 {[%clk 0:01:34.5]} 13... Ne7 {[%clk 0:02:05.7]} 14.
Ba3 {[%clk 0:01:20.3]} 14... b5 {[%clk 0:01:56.7]} 15. Qxd8+ {[%clk 0:01:12.5]}
15... Rxd8 {[%clk 0:01:55.4]} 16. Rad1 {[%clk 0:01:12.5]} 16... Rxd1 {[%clk
0:01:24.9]} 17. Rxd1 {[%clk 0:01:13.4]} 17... a5 {[%clk 0:01:21.8]} 18. Bc5
{[%clk 0:01:04.7]} 18... f5 {[%clk 0:01:09.1]} 19. Ng5 {[%clk 0:00:26.7]} 19...
h6 {[%clk 0:01:00.9]} 20. Ne6 {[%clk 0:00:26.1]} 20... Bf6 {[%clk 0:00:58.8]}
21. Nc7+ {[%clk 0:00:23.7]} 21... Kf7 {[%clk 0:00:56.6]} 22. N7xb5 {[%clk
0:00:23.5]} 22... Bxe4 {[%clk 0:00:49.7]} 23. Nxe4 {[%clk 0:00:22.9]} 23... fxe4
{[%clk 0:00:50.6]} 24. Nd6+ {[%clk 0:00:23.3]} 24... Ke6 {[%clk 0:00:48.5]} 25.
Nxe4 {[%clk 0:00:23.2]} 25... Nf5 {[%clk 0:00:46.5]} 26. g4 {[%clk 0:00:22]}
26... Nd4 {[%clk 0:00:44.4]} 27. Nxf6 {[%clk 0:00:18.7]} 27... Kxf6 {[%clk
0:00:45.3]} 28. Rxd4 {[%clk 0:00:18.9]} 28... Rc8 {[%clk 0:00:36.9]} 29. Rc4
{[%clk 0:00:19]} 29... Kg5 {[%clk 0:00:33.9]} 30. Be7# {[%clk 0:00:18.2]} 1-0

[Event "*** SCC Grand Prix: Titled Tuesday Blitz"]
[Site "Chess.com"]
[Date "2020.06.23"]
[Round "1"]
[White "KubaGepard"]
[Black "12teen"]
[Result "0-1"]
[WhiteElo "2338"]
[BlackElo "2675"]
[TimeControl "180+1"]
[EndTime "10:06:26 PDT"]
[Termination "12teen won by resignation"]

1. d4 {[%clk 0:02:58.6]} 1... Nf6 {[%clk 0:02:58.7]} 2. Nf3 {[%clk 0:02:58.3]}
2... b6 {[%clk 0:02:58.5]} 3. g3 {[%clk 0:02:56.5]} 3... Bb7 {[%clk 0:02:59.4]}
4. Bg2 {[%clk 0:02:56.6]} 4... d5 {[%clk 0:03:00.3]} 5. O-O {[%clk 0:02:56.8]}
5... e6 {[%clk 0:03:00.3]} 6. Ne5 {[%clk 0:02:56.9]} 6... Nbd7 {[%clk
0:02:58.1]} 7. c4 {[%clk 0:02:55.9]} 7... Be7 {[%clk 0:02:57]} 8. Nc3 {[%clk
0:02:55.9]} 8... O-O {[%clk 0:02:53.8]} 9. Bf4 {[%clk 0:02:55.8]} 9... c5 {[%clk
0:02:50.3]} 10. cxd5 {[%clk 0:02:55.5]} 10... exd5 {[%clk 0:02:48.8]} 11. Rc1
{[%clk 0:02:55.2]} 11... a6 {[%clk 0:02:42.4]} 12. dxc5 {[%clk 0:02:42.9]} 12...
Nxc5 {[%clk 0:02:42.2]} 13. Bg5 {[%clk 0:02:25.5]} 13... Ne6 {[%clk 0:02:17.3]}
14. Bxf6 {[%clk 0:02:06.9]} 14... Bxf6 {[%clk 0:02:18.2]} 15. Ng4 {[%clk
0:02:07.1]} 15... Bxc3 {[%clk 0:02:17.9]} 16. bxc3 {[%clk 0:02:05.6]} 16... Qd7
{[%clk 0:02:09.3]} 17. Ne3 {[%clk 0:02:01.5]} 17... Rfd8 {[%clk 0:02:07.6]} 18.
Qb3 {[%clk 0:02:01.4]} 18... d4 {[%clk 0:02:01.2]} 19. Rfd1 {[%clk 0:01:59.2]}
19... Bxg2 {[%clk 0:01:56]} 20. Nxg2 {[%clk 0:01:58.7]} 20... Qb7 {[%clk
0:01:53]} 21. cxd4 {[%clk 0:01:33.5]} 21... Nxd4 {[%clk 0:01:51.7]} 22. Qb2
{[%clk 0:01:31.4]} 22... Qe4 {[%clk 0:01:40]} 23. Kf1 {[%clk 0:01:21.7]} 23...
b5 {[%clk 0:01:38]} 24. Qb1 {[%clk 0:01:09.1]} 24... Qxe2+ {[%clk 0:01:36.8]}
25. Kg1 {[%clk 0:01:07.3]} 25... Nf3+ {[%clk 0:01:29.4]} 26. Kh1 {[%clk
0:01:07.4]} 26... Ng5 {[%clk 0:01:02.6]} 27. Rf1 {[%clk 0:00:51.3]} 27... Qf3
{[%clk 0:00:58.1]} 28. Rc5 {[%clk 0:00:29.7]} 28... Ne4 {[%clk 0:00:56.4]} 29.
Rc2 {[%clk 0:00:14.2]} 29... Nd2 {[%clk 0:00:54.9]} 30. Qd1 {[%clk 0:00:14.7]}
30... Qd5 {[%clk 0:00:39.8]} 31. Qe2 {[%clk 0:00:14.7]} 31... Nxf1 {[%clk
0:00:39.1]} 32. Qxf1 {[%clk 0:00:14.9]} 32... Qd1 {[%clk 0:00:37.8]} 0-1

[Event "*** SCC Grand Prix: Titled Tuesday Blitz"]
[Site "Chess.com"]
[Date "2020.06.23"]
[Round "1"]
[White "skoularikii"]
[Black "tamarozi99"]
[Result "1-0"]
[WhiteElo "2505"]
[BlackElo "2071"]
[TimeControl "180+1"]
[EndTime "10:06:27 PDT"]
[Termination "skoularikii won on time"]

1. e4 {[%clk 0:02:49.7]} 1... c5 {[%clk 0:02:59.4]} 2. Nf3 {[%clk 0:02:44.9]}
2... Nc6 {[%clk 0:02:58.7]} 3. Bb5 {[%clk 0:02:43.6]} 3... g6 {[%clk 0:02:57.2]}
4. O-O {[%clk 0:02:43]} 4... Bg7 {[%clk 0:02:56.9]} 5. Re1 {[%clk 0:02:43.7]}
5... Nf6 {[%clk 0:02:56.5]} 6. h3 {[%clk 0:02:43.9]} 6... O-O {[%clk 0:02:56.1]}
7. a4 {[%clk 0:02:40.1]} 7... Qc7 {[%clk 0:02:50.9]} 8. Nc3 {[%clk 0:02:36.3]}
8... d6 {[%clk 0:02:40.1]} 9. Nd5 {[%clk 0:02:30]} 9... Nxd5 {[%clk 0:02:32.6]}
10. exd5 {[%clk 0:02:30.9]} 10... Nd4 {[%clk 0:02:32.6]} 11. d3 {[%clk
0:02:24.2]} 11... h6 {[%clk 0:02:15.6]} 12. c3 {[%clk 0:02:19.5]} 12... Nxb5
{[%clk 0:02:02.8]} 13. axb5 {[%clk 0:02:19.2]} 13... a6 {[%clk 0:02:03]} 14.
bxa6 {[%clk 0:01:53.9]} 14... Rxa6 {[%clk 0:02:00.6]} 15. Rxa6 {[%clk
0:01:53.6]} 15... bxa6 {[%clk 0:02:01.5]} 16. Qa4 {[%clk 0:01:52.7]} 16... Bb7
{[%clk 0:01:54.9]} 17. c4 {[%clk 0:01:52.1]} 17... Rd8 {[%clk 0:01:35]} 18. Bd2
{[%clk 0:01:48.6]} 18... Qd7 {[%clk 0:01:32.6]} 19. Qb3 {[%clk 0:01:48.1]} 19...
Rb8 {[%clk 0:01:30]} 20. Ra1 {[%clk 0:01:41.1]} 20... e6 {[%clk 0:01:17.6]} 21.
dxe6 {[%clk 0:01:30.2]} 21... fxe6 {[%clk 0:01:15.8]} 22. Rxa6 {[%clk
0:01:28.8]} 22... Qc7 {[%clk 0:01:02.8]} 23. Rb6 {[%clk 0:01:19.5]} 23... Kh7
{[%clk 0:00:59.7]} 24. Ba5 {[%clk 0:01:18.6]} 24... Qe7 {[%clk 0:00:15.8]} 25.
Bc3 {[%clk 0:01:16.9]} 25... e5 {[%clk 0:00:08.4]} 26. Bd2 {[%clk 0:01:07.8]}
26... Qf7 {[%clk 0:00:06.4]} 27. Rxd6 {[%clk 0:01:02.6]} 27... Bxf3 {[%clk
0:00:03.9]} 28. Qxb8 {[%clk 0:01:00.9]} 28... Be2 {[%clk 0:00:04]} 29. Qc8
{[%clk 0:00:54.6]} 29... Bd1 {[%clk 0:00:01.5]} 30. Qxc5 {[%clk 0:00:54]} 30...
Bc2 {[%clk 0:00:01.1]} 31. Qc6 {[%clk 0:00:52.8]} 1-0

[Event "*** SCC Grand Prix: Titled Tuesday Blitz"]
[Site "Chess.com"]
[Date "2020.06.23"]
[Round "1"]
[White "Escanor89"]
[Black "EnergeticHay"]
[Result "1-0"]
[WhiteElo "2557"]
[BlackElo "2207"]
[TimeControl "180+1"]
[EndTime "10:06:28 PDT"]
[Termination "Escanor89 won by checkmate"]

1. c4 {[%clk 0:03:00.9]} 1... Nf6 {[%clk 0:02:59.9]} 2. Nc3 {[%clk 0:03:00.8]}
2... g6 {[%clk 0:02:58.8]} 3. e4 {[%clk 0:03:00.2]} 3... d6 {[%clk 0:02:59.4]}
4. d4 {[%clk 0:02:59.9]} 4... Bg7 {[%clk 0:02:59.4]} 5. Nf3 {[%clk 0:02:59.9]}
5... O-O {[%clk 0:02:59.6]} 6. Be2 {[%clk 0:03:00.4]} 6... e5 {[%clk 0:02:59.8]}
7. O-O {[%clk 0:03:00.4]} 7... Na6 {[%clk 0:02:59.6]} 8. Be3 {[%clk 0:02:56.2]}
8... Ng4 {[%clk 0:02:59.2]} 9. Bg5 {[%clk 0:02:55.9]} 9... Qe8 {[%clk
0:02:59.5]} 10. dxe5 {[%clk 0:02:27.1]} 10... dxe5 {[%clk 0:03:00.4]} 11. h3
{[%clk 0:02:17.4]} 11... f6 {[%clk 0:02:59.6]} 12. Bd2 {[%clk 0:02:16.4]} 12...
Nh6 {[%clk 0:02:59]} 13. Qc2 {[%clk 0:02:11.9]} 13... c6 {[%clk 0:02:50.6]} 14.
Rfd1 {[%clk 0:02:10.2]} 14... f5 {[%clk 0:02:48.8]} 15. a3 {[%clk 0:02:02.4]}
15... Nf7 {[%clk 0:02:39.2]} 16. b4 {[%clk 0:01:58.6]} 16... Nc7 {[%clk
0:02:37.9]} 17. c5 {[%clk 0:01:48.9]} 17... Ne6 {[%clk 0:02:35.8]} 18. exf5
{[%clk 0:01:39.2]} 18... Nd4 {[%clk 0:02:06]} 19. Nxd4 {[%clk 0:01:24.8]} 19...
exd4 {[%clk 0:02:06.9]} 20. fxg6 {[%clk 0:01:09.7]} 20... hxg6 {[%clk
0:01:52.9]} 21. Qxg6 {[%clk 0:00:48.6]} 21... dxc3 {[%clk 0:01:35.3]} 22. Bd3
{[%clk 0:00:45.9]} 22... Ne5 {[%clk 0:01:32.6]} 23. Qh7+ {[%clk 0:00:37.6]}
23... Kf7 {[%clk 0:01:32.6]} 24. Bxc3 {[%clk 0:00:34.8]} 24... Rh8 {[%clk
0:01:17.3]} 25. Bg6+ {[%clk 0:00:24.7]} 25... Kf8 {[%clk 0:01:08.1]} 26. Qxg7+
{[%clk 0:00:22.5]} 26... Kxg7 {[%clk 0:01:07.9]} 27. Bxe8 {[%clk 0:00:22.9]}
27... Rxe8 {[%clk 0:01:08.3]} 28. f4 {[%clk 0:00:23.1]} 28... Kg6 {[%clk
0:01:06]} 29. Bxe5 {[%clk 0:00:22.9]} 29... Be6 {[%clk 0:01:06.5]} 30. Rd6
{[%clk 0:00:22.5]} 30... Rad8 {[%clk 0:01:06.5]} 31. Rad1 {[%clk 0:00:22.2]}
31... Rxd6 {[%clk 0:01:04.9]} 32. Rxd6 {[%clk 0:00:22.2]} 32... Kf7 {[%clk
0:01:05.8]} 33. g4 {[%clk 0:00:21.9]} 33... Re7 {[%clk 0:01:05.8]} 34. Kg2
{[%clk 0:00:22.1]} 34... Bd5+ {[%clk 0:01:06.3]} 35. Kg3 {[%clk 0:00:22.3]}
35... Be4 {[%clk 0:01:06.1]} 36. h4 {[%clk 0:00:21.7]} 36... Bd5 {[%clk
0:01:06.4]} 37. Rf6+ {[%clk 0:00:21.5]} 37... Kg8 {[%clk 0:01:06.2]} 38. Rd6
{[%clk 0:00:21.4]} 38... Rh7 {[%clk 0:01:06.5]} 39. h5 {[%clk 0:00:21.6]} 39...
a6 {[%clk 0:01:04.8]} 40. f5 {[%clk 0:00:21.7]} 40... Re7 {[%clk 0:01:04]} 41.
Kf4 {[%clk 0:00:22]} 41... Bc4 {[%clk 0:00:59.2]} 42. g5 {[%clk 0:00:21.9]}
42... Be2 {[%clk 0:00:59.8]} 43. h6 {[%clk 0:00:21.8]} 43... Bh5 {[%clk
0:01:00.3]} 44. g6 {[%clk 0:00:21.6]} 44... Be2 {[%clk 0:00:59.8]} 45. Rd8+
{[%clk 0:00:21.1]} 45... Re8 {[%clk 0:01:00.2]} 46. Rxe8# {[%clk 0:00:21.2]} 1-0

[Event "*** SCC Grand Prix: Titled Tuesday Blitz"]
[Site "Chess.com"]
[Date "2020.06.23"]
[Round "1"]
[White "EvgenyRomanov"]
[Black "icychess54"]
[Result "1-0"]
[WhiteElo "2650"]
[BlackElo "2322"]
[TimeControl "180+1"]
[EndTime "10:06:30 PDT"]
[Termination "EvgenyRomanov won on time"]

1. e4 {[%clk 0:02:56.6]} 1... c5 {[%clk 0:02:59.6]} 2. Nf3 {[%clk 0:02:56]} 2...
d6 {[%clk 0:03:00]} 3. Bb5+ {[%clk 0:02:54.8]} 3... Bd7 {[%clk 0:02:59.4]} 4. a4
{[%clk 0:02:53.9]} 4... a6 {[%clk 0:02:58.8]} 5. Bxd7+ {[%clk 0:02:52.5]} 5...
Nxd7 {[%clk 0:02:59.7]} 6. a5 {[%clk 0:02:50.5]} 6... e6 {[%clk 0:02:59]} 7. O-O
{[%clk 0:02:48.9]} 7... Ngf6 {[%clk 0:02:57.9]} 8. Qe2 {[%clk 0:02:47.3]} 8...
Be7 {[%clk 0:02:51.1]} 9. c3 {[%clk 0:02:44.4]} 9... O-O {[%clk 0:02:46.9]} 10.
d3 {[%clk 0:02:43.2]} 10... Nb8 {[%clk 0:02:38.9]} 11. Nbd2 {[%clk 0:02:37.8]}
11... Nc6 {[%clk 0:02:37.3]} 12. Nc4 {[%clk 0:02:37.3]} 12... d5 {[%clk
0:02:23.3]} 13. Nb6 {[%clk 0:02:34.7]} 13... Rb8 {[%clk 0:02:23.6]} 14. Bf4
{[%clk 0:02:26.2]} 14... Nxa5 {[%clk 0:01:57.3]} 15. Bxb8 {[%clk 0:02:20.4]}
15... Nb3 {[%clk 0:01:43.1]} 16. Ba7 {[%clk 0:01:40.1]} 16... Nxa1 {[%clk
0:01:39.9]} 17. Rxa1 {[%clk 0:01:41]} 17... c4 {[%clk 0:01:14.6]} 18. e5 {[%clk
0:01:28.3]} 18... cxd3 {[%clk 0:00:58.8]} 19. Qxd3 {[%clk 0:01:27.6]} 19... Ne4
{[%clk 0:00:59.4]} 20. b4 {[%clk 0:01:16.7]} 20... Qc7 {[%clk 0:00:37.3]} 21.
Ra3 {[%clk 0:01:11.2]} 21... Bd8 {[%clk 0:00:24.4]} 22. g3 {[%clk 0:00:58]}
22... h6 {[%clk 0:00:18.4]} 23. Qd4 {[%clk 0:00:51.6]} 23... f6 {[%clk
0:00:15.1]} 24. Nxd5 {[%clk 0:00:44.8]} 24... exd5 {[%clk 0:00:04.4]} 25. Qxd5+
{[%clk 0:00:44.7]} 25... Kh8 {[%clk 0:00:04.9]} 26. Qxe4 {[%clk 0:00:43.6]}
26... fxe5 {[%clk 0:00:04.9]} 27. Nxe5 {[%clk 0:00:42.1]} 27... Re8 {[%clk
0:00:02.5]} 28. Ng6+ {[%clk 0:00:40.3]} 28... Kh7 {[%clk 0:00:02.3]} 29. Qxe8
{[%clk 0:00:40.8]} 1-0

[Event "*** SCC Grand Prix: Titled Tuesday Blitz"]
[Site "Chess.com"]
[Date "2020.06.23"]
[Round "1"]
[White "BJthechessgod"]
[Black "Lupul_Cenusiu"]
[Result "0-1"]
[WhiteElo "2208"]
[BlackElo "2558"]
[TimeControl "180+1"]
[EndTime "10:06:31 PDT"]
[Termination "Lupul_Cenusiu won by resignation"]

1. d4 {[%clk 0:02:59.2]} 1... Nf6 {[%clk 0:02:59.1]} 2. c4 {[%clk 0:02:59.3]}
2... e6 {[%clk 0:02:56.6]} 3. Nc3 {[%clk 0:02:57.2]} 3... c5 {[%clk 0:02:55.7]}
4. e3 {[%clk 0:02:56.9]} 4... a6 {[%clk 0:02:54.5]} 5. Nf3 {[%clk 0:02:55.1]}
5... d5 {[%clk 0:02:53.6]} 6. cxd5 {[%clk 0:02:53.3]} 6... exd5 {[%clk
0:02:53.2]} 7. Be2 {[%clk 0:02:51.4]} 7... Nc6 {[%clk 0:02:52.5]} 8. O-O {[%clk
0:02:50.5]} 8... h6 {[%clk 0:02:52.2]} 9. Re1 {[%clk 0:02:46.3]} 9... cxd4
{[%clk 0:02:51.6]} 10. Nxd4 {[%clk 0:02:45.2]} 10... Bd6 {[%clk 0:02:51.6]} 11.
Bf3 {[%clk 0:02:44.6]} 11... O-O {[%clk 0:02:50.2]} 12. h3 {[%clk 0:02:40.2]}
12... Bc7 {[%clk 0:02:48.3]} 13. Nxc6 {[%clk 0:02:20.9]} 13... bxc6 {[%clk
0:02:47.4]} 14. Na4 {[%clk 0:02:21.2]} 14... Qd6 {[%clk 0:02:46.6]} 15. Qd4
{[%clk 0:01:42.6]} 15... Qh2+ {[%clk 0:02:43.7]} 16. Kf1 {[%clk 0:01:42.7]}
16... a5 {[%clk 0:02:35]} 17. Nc5 {[%clk 0:01:29]} 17... Bb6 {[%clk 0:02:28]}
18. Ke2 {[%clk 0:00:47.6]} 18... Rd8 {[%clk 0:02:25.6]} 19. a3 {[%clk
0:00:38.5]} 19... Ba6+ {[%clk 0:02:21.3]} 20. Kd1 {[%clk 0:00:37.6]} 20... Ne4
{[%clk 0:02:20.6]} 21. b4 {[%clk 0:00:23.8]} 21... Nxf2+ {[%clk 0:02:18.7]} 22.
Kc2 {[%clk 0:00:24.1]} 22... Bd3+ {[%clk 0:01:47.2]} 23. Kb3 {[%clk 0:00:16]}
23... axb4 {[%clk 0:01:33.4]} 24. axb4 {[%clk 0:00:10]} 24... Bc4+ {[%clk
0:01:31.3]} 25. Kc2 {[%clk 0:00:09]} 25... Rxa1 {[%clk 0:01:24.5]} 26. Qxa1
{[%clk 0:00:08.5]} 26... Bxc5 {[%clk 0:01:16.9]} 27. bxc5 {[%clk 0:00:09.1]}
27... Nd3 {[%clk 0:01:15.2]} 28. Rd1 {[%clk 0:00:08.8]} 28... Nxc5 {[%clk
0:01:14.5]} 29. Qd4 {[%clk 0:00:04.6]} 29... Bb3+ {[%clk 0:01:08.7]} 30. Kb2
{[%clk 0:00:04.5]} 30... Bxd1 {[%clk 0:01:07.5]} 31. Bxd1 {[%clk 0:00:03.9]}
31... Qxg2+ {[%clk 0:01:05.6]} 32. Bc2 {[%clk 0:00:04.3]} 32... Ne6 {[%clk
0:01:04.3]} 33. Qe5 {[%clk 0:00:04]} 33... d4 {[%clk 0:00:59.4]} 34. exd4 {[%clk
0:00:03.5]} 34... Nxd4 {[%clk 0:00:55.1]} 35. Be3 {[%clk 0:00:03.5]} 35... Qxc2+
{[%clk 0:00:54]} 0-1

[Event "*** SCC Grand Prix: Titled Tuesday Blitz"]
[Site "Chess.com"]
[Date "2020.06.23"]
[Round "1"]
[White "mamey78"]
[Black "Khvicha_Supatashvili"]
[Result "1/2-1/2"]
[WhiteElo "2327"]
[BlackElo "2639"]
[TimeControl "180+1"]
[EndTime "10:06:32 PDT"]
[Termination "Game drawn by agreement"]

1. e4 {[%clk 0:02:44.2]} 1... c5 {[%clk 0:02:58.5]} 2. Nf3 {[%clk 0:02:43.4]}
2... Nc6 {[%clk 0:02:58]} 3. c3 {[%clk 0:02:42.2]} 3... e6 {[%clk 0:02:56.9]} 4.
d4 {[%clk 0:02:40.8]} 4... d5 {[%clk 0:02:56.6]} 5. exd5 {[%clk 0:02:40.9]} 5...
exd5 {[%clk 0:02:56.9]} 6. Bb5 {[%clk 0:02:41]} 6... Nf6 {[%clk 0:02:55.5]} 7.
O-O {[%clk 0:02:39.7]} 7... Bd6 {[%clk 0:02:55.5]} 8. dxc5 {[%clk 0:02:34.2]}
8... Bxc5 {[%clk 0:02:55.2]} 9. Nbd2 {[%clk 0:02:33.1]} 9... O-O {[%clk
0:02:52.7]} 10. Nb3 {[%clk 0:02:32.2]} 10... Bb6 {[%clk 0:02:52.8]} 11. Bg5
{[%clk 0:02:28.5]} 11... Bg4 {[%clk 0:02:44.6]} 12. h3 {[%clk 0:02:21]} 12...
Bh5 {[%clk 0:02:42.2]} 13. Re1 {[%clk 0:01:54]} 13... a6 {[%clk 0:02:35.3]} 14.
Bf1 {[%clk 0:01:45.8]} 14... Qd6 {[%clk 0:02:13]} 15. Bxf6 {[%clk 0:01:44.3]}
15... gxf6 {[%clk 0:02:12.6]} 16. Qd3 {[%clk 0:01:31.6]} 16... Rad8 {[%clk
0:01:53.7]} 17. Be2 {[%clk 0:01:20.7]} 17... Bc7 {[%clk 0:01:35]} 18. g3 {[%clk
0:01:07]} 18... Bg6 {[%clk 0:01:34.3]} 19. Qd2 {[%clk 0:01:04.4]} 19... Bb6
{[%clk 0:01:32.8]} 20. Nbd4 {[%clk 0:01:03.2]} 20... Ne5 {[%clk 0:01:32.1]} 21.
Rad1 {[%clk 0:00:54.6]} 21... Rfe8 {[%clk 0:01:29.3]} 22. Nh4 {[%clk 0:00:52.3]}
22... Qd7 {[%clk 0:01:24.2]} 23. Kh2 {[%clk 0:00:46.1]} 23... Nc4 {[%clk
0:01:13]} 24. Qc1 {[%clk 0:00:41.3]} 24... Nd6 {[%clk 0:01:07.3]} 25. Qf4 {[%clk
0:00:39.1]} 25... Ne4 {[%clk 0:01:04.3]} 26. Bg4 {[%clk 0:00:38.6]} 26... Qc7
{[%clk 0:00:54.9]} 27. Qf3 {[%clk 0:00:30.8]} 27... Re5 {[%clk 0:00:45.4]} 28.
Nhf5 {[%clk 0:00:29.8]} 28... Rde8 {[%clk 0:00:34.4]} 29. h4 {[%clk 0:00:27.5]}
1/2-1/2

[Event "*** SCC Grand Prix: Titled Tuesday Blitz"]
[Site "Chess.com"]
[Date "2020.06.23"]
[Round "1"]
[White "CalinGheorghiu"]
[Black "ValentinDragnev"]
[Result "0-1"]
[WhiteElo "2379"]
[BlackElo "2725"]
[TimeControl "180+1"]
[EndTime "10:06:33 PDT"]
[Termination "ValentinDragnev won by resignation"]

1. e4 {[%clk 0:02:57.2]} 1... e5 {[%clk 0:02:58]} 2. Nf3 {[%clk 0:02:54.7]} 2...
Nc6 {[%clk 0:02:58.2]} 3. Nc3 {[%clk 0:02:54.3]} 3... d6 {[%clk 0:02:56.2]} 4.
d4 {[%clk 0:02:53.4]} 4... Nf6 {[%clk 0:02:51.3]} 5. Bb5 {[%clk 0:02:51.4]} 5...
exd4 {[%clk 0:02:48.4]} 6. Nxd4 {[%clk 0:02:49.2]} 6... Bd7 {[%clk 0:02:48.5]}
7. Bxc6 {[%clk 0:02:49.4]} 7... bxc6 {[%clk 0:02:48.2]} 8. Qf3 {[%clk
0:02:49.8]} 8... c5 {[%clk 0:02:40.5]} 9. Nf5 {[%clk 0:02:49.1]} 9... Bxf5
{[%clk 0:02:39]} 10. exf5 {[%clk 0:02:48.5]} 10... Be7 {[%clk 0:02:38.2]} 11.
O-O {[%clk 0:02:43.1]} 11... O-O {[%clk 0:02:38.7]} 12. Bg5 {[%clk 0:02:29.2]}
12... Rb8 {[%clk 0:02:38.5]} 13. b3 {[%clk 0:02:27.6]} 13... h6 {[%clk
0:02:38.9]} 14. Bh4 {[%clk 0:02:27]} 14... Rb4 {[%clk 0:02:33.8]} 15. Bg3 {[%clk
0:02:10.3]} 15... d5 {[%clk 0:02:31.1]} 16. Rad1 {[%clk 0:02:06.6]} 16... c6
{[%clk 0:02:30.9]} 17. a3 {[%clk 0:01:51]} 17... Rb7 {[%clk 0:02:29.9]} 18. Rfe1
{[%clk 0:01:48.3]} 18... Re8 {[%clk 0:02:29.5]} 19. Na4 {[%clk 0:01:36.1]} 19...
Bf8 {[%clk 0:02:16.4]} 20. Be5 {[%clk 0:01:07.9]} 20... Rbe7 {[%clk 0:02:09.7]}
21. Qc3 {[%clk 0:00:58.6]} 21... d4 {[%clk 0:01:40.7]} 22. Qg3 {[%clk
0:00:37.9]} 22... Nd7 {[%clk 0:01:04.3]} 23. f4 {[%clk 0:00:23.7]} 23... f6
{[%clk 0:01:04.3]} 24. Bxf6 {[%clk 0:00:05.3]} 24... Nxf6 {[%clk 0:01:00.8]} 25.
Re6 {[%clk 0:00:03.9]} 25... Rxe6 {[%clk 0:01:00]} 26. fxe6 {[%clk 0:00:04.2]}
26... Rxe6 {[%clk 0:01:00.4]} 27. f5 {[%clk 0:00:04.5]} 27... Re8 {[%clk
0:00:56.3]} 28. c3 {[%clk 0:00:03.5]} 28... Qd5 {[%clk 0:00:52.7]} 29. cxd4
{[%clk 0:00:02.6]} 29... cxd4 {[%clk 0:00:53.6]} 30. Nc3 {[%clk 0:00:01.8]}
30... Qxb3 {[%clk 0:00:49.8]} 31. Qc7 {[%clk 0:00:01.4]} 0-1

[Event "*** SCC Grand Prix: Titled Tuesday Blitz"]
[Site "Chess.com"]
[Date "2020.06.23"]
[Round "1"]
[White "Evgeny81"]
[Black "Justinz"]
[Result "1-0"]
[WhiteElo "2786"]
[BlackElo "2401"]
[TimeControl "180+1"]
[EndTime "10:06:35 PDT"]
[Termination "Evgeny81 won by resignation"]

1. e4 {[%clk 0:03:00.9]} 1... c5 {[%clk 0:02:57.5]} 2. b4 {[%clk 0:03:00.1]}
2... cxb4 {[%clk 0:02:57]} 3. Nf3 {[%clk 0:02:59.1]} 3... d5 {[%clk 0:02:56.8]}
4. exd5 {[%clk 0:02:57.1]} 4... Nf6 {[%clk 0:02:48.6]} 5. a3 {[%clk 0:02:55.2]}
5... Nxd5 {[%clk 0:02:43.1]} 6. axb4 {[%clk 0:02:52.4]} 6... Nxb4 {[%clk
0:02:42.6]} 7. Bb2 {[%clk 0:02:50.1]} 7... Bg4 {[%clk 0:02:36]} 8. Be2 {[%clk
0:02:45]} 8... e6 {[%clk 0:02:31.4]} 9. O-O {[%clk 0:02:40.9]} 9... N8c6 {[%clk
0:02:30.2]} 10. Na3 {[%clk 0:02:30.1]} 10... a6 {[%clk 0:02:27.5]} 11. Nc4
{[%clk 0:02:29.6]} 11... Rc8 {[%clk 0:02:23.8]} 12. h3 {[%clk 0:02:20]} 12...
Bh5 {[%clk 0:02:22]} 13. Re1 {[%clk 0:02:16.8]} 13... Bg6 {[%clk 0:02:20]} 14.
d3 {[%clk 0:02:14.7]} 14... Nd5 {[%clk 0:02:11.4]} 15. Nfe5 {[%clk 0:02:10.2]}
15... Nxe5 {[%clk 0:02:10.8]} 16. Nxe5 {[%clk 0:02:10.8]} 16... Nc3 {[%clk
0:02:08.6]} 17. Qd2 {[%clk 0:01:47.7]} 17... Bb4 {[%clk 0:01:56.2]} 18. Qc1
{[%clk 0:01:27.3]} 18... O-O {[%clk 0:01:53]} 19. Bf3 {[%clk 0:01:27.5]} 19...
Rc7 {[%clk 0:01:49.5]} 20. Ba3 {[%clk 0:01:20.4]} 20... Bxa3 {[%clk 0:01:45.3]}
21. Qxa3 {[%clk 0:01:21.3]} 21... Nd5 {[%clk 0:01:45]} 22. c4 {[%clk 0:01:16.2]}
22... Nf4 {[%clk 0:01:38]} 23. Rad1 {[%clk 0:01:12.8]} 23... Qd4 {[%clk
0:01:35.3]} 24. h4 {[%clk 0:01:06.7]} 24... Rd8 {[%clk 0:01:25.2]} 25. Re3
{[%clk 0:01:05.6]} 25... f6 {[%clk 0:01:00.4]} 26. Nxg6 {[%clk 0:01:03.9]} 26...
Nxg6 {[%clk 0:01:01.3]} 27. Be4 {[%clk 0:00:52.9]} 27... Ne5 {[%clk 0:00:58.4]}
28. Rde1 {[%clk 0:00:48.7]} 28... g6 {[%clk 0:00:55.6]} 29. Qa5 {[%clk
0:00:45.4]} 29... Ng4 {[%clk 0:00:51.4]} 30. Qxc7 {[%clk 0:00:43.6]} 30... Nxe3
{[%clk 0:00:50.3]} 31. Rxe3 {[%clk 0:00:44.5]} 31... Rd7 {[%clk 0:00:49.5]} 32.
Qc8+ {[%clk 0:00:43]} 32... Kg7 {[%clk 0:00:49.6]} 33. h5 {[%clk 0:00:43.2]}
33... f5 {[%clk 0:00:49.2]} 34. Bf3 {[%clk 0:00:42.2]} 34... e5 {[%clk 0:00:48]}
35. hxg6 {[%clk 0:00:39.5]} 35... hxg6 {[%clk 0:00:47.7]} 36. c5 {[%clk
0:00:38.6]} 36... Kf6 {[%clk 0:00:42]} 37. Qh8+ {[%clk 0:00:35.1]} 37... Kg5
{[%clk 0:00:41.4]} 38. Qxe5 {[%clk 0:00:32.3]} 38... Qxe5 {[%clk 0:00:39]} 39.
Rxe5 {[%clk 0:00:33.2]} 39... Rxd3 {[%clk 0:00:39.3]} 40. Bxb7 {[%clk 0:00:33]}
40... a5 {[%clk 0:00:39.5]} 41. c6 {[%clk 0:00:32.5]} 41... a4 {[%clk
0:00:39.7]} 42. c7 {[%clk 0:00:32.4]} 1-0